bitfinex/quotes_ETHUSD_20220308
["timestamp","ask_amount","ask_price","bid_price","bid_amount"]
[1646702661018,0.53979451,2535.6,2534.9,0.50086713]
[1646702661419,0.53979451,2535.6,2535.2,1.07390643]
[1646702661634,0.00483863,2535.7,2535.3,0.491]
[1646702662261,0.11008128,2536.3,2535.3,0.491]
[1646702662564,0.00483863,2535.6,2535.3,0.491]
[1646702663358,0.3,2535.9,2535.3,1.47722]
[1646702663559,0.93704984,2535.5,2535.3,1.47722]
[1646702663958,0.93704984,2535.5,2535.3,0.491]
[1646702664762,0.00500976,2535.5,2535.3,0.491]
[1646702665818,0.96995702,2535.5,2535.3,0.491]
[1646702666017,0.96995702,2535.5,2534.7,1.97305]
[1646702666018,3.5,2535.4,2534.7,1.97305]
[1646702666218,3.5,2535.4,2534.3,3.45044]
[1646702666219,0.53956673,2535.3,2534.3,3.45044]
[1646702666417,0.53956673,2535.3,2534.3,2.95944]
[1646702666621,0.53956673,2535.3,2534.1,1.3868]
[1646702666622,3.5,2535.2,2534.1,0.8958]
[1646702666818,1.10001715,2535.1,2534.5,1.08654814]
[1646702667019,0.3,2535.2,2534.5,1.08654814]
[1646702667220,0.3,2535.2,2534.6,0.98661]
[1646702667426,0.00501015,2535.0,2534.6,0.98661]
[1646702667621,0.00501015,2535.0,2534.7,0.491]
[1646702668223,1.25367743,2535.5,2534.9,1.97984186]
[1646702668424,0.00501015,2535.0,2534.9,1.97984186]
[1646702669277,1.27418275,2535.5,2534.9,1.97984186]
[1646702669679,0.00501007,2535.1,2535.0,0.98644]
[1646702670579,1.27418275,2535.5,2535.0,0.98644]
[1646702670780,0.00501003,2535.2,2535.0,0.98644]
[1646702671080,0.00501003,2535.2,2534.9,1.97289]
[1646702671681,1.27418275,2535.5,2534.9,1.97289]
[1646702672083,0.00499263,2535.2,2534.9,1.97289]
[1646702672484,0.93308059,2535.1,2534.9,1.97289]
[1646702672685,0.93308059,2535.1,2533.9,2.00152869]
[1646702672890,1.23308059,2535.1,2533.9,2.00152869]
[1646702673119,1.53308059,2535.1,2533.9,2.00152869]
[1646702673318,0.9866971,2535.0,2533.9,2.00152869]
[1646702673518,0.3,2534.9,2533.9,2.00152869]
[1646702673717,0.3,2534.9,2534.4,1.19173122]
[1646702673924,0.3,2534.9,2534.5,0.98665]
[1646702674118,1.00499267,2535.1,2534.5,0.98665]
[1646702674119,0.3,2535.1,2534.5,0.98665]
[1646702674518,11.0818,2535.6,2534.5,0.98665]
[1646702674721,0.00499349,2534.8,2534.5,0.98665]
[1646702675320,0.9865558,2535.3,2534.5,0.98665]
[1646702675523,0.3,2535.2,2534.9,0.95038948]
[1646702675720,0.3,2535.2,2534.9,1.93693948]
[1646702676751,0.3,2535.2,2534.6,1.97309]
[1646702676953,1.29163451,2535.2,2534.6,1.97309]
[1646702677354,0.3,2535.1,2534.6,0.61572912]
[1646702677954,0.00501014,2535.0,2534.6,0.61572912]
[1646702678162,0.00501014,2535.0,2534.7,1.18662874]
[1646702678854,0.99170574,2535.0,2534.7,1.18662874]
[1646702679055,0.3,2534.9,2534.7,1.18662874]
[1646702679655,0.3,2534.9,2534.5,1.97322]
[1646702679859,0.9867548,2534.8,2534.2,1.9734]
[1646702680059,0.7367548,2534.8,2534.2,1.9734]
[1646702680262,0.3,2534.7,2534.2,1.9734]
[1646702680521,0.3,2534.7,2534.2,2.87566615]
[1646702681014,0.3,2534.7,2534.6,1.11571569]
[1646702681217,0.30452207,2534.8,2534.6,1.11571569]
[1646702681515,0.3,2534.8,2534.6,1.11571569]
[1646702681715,1.21073533,2535.1,2534.6,1.11571569]
[1646702682115,1.51073533,2535.1,2534.6,1.11571569]
[1646702682617,1.51073533,2535.1,2534.7,0.98661]
[1646702682817,0.3,2535.1,2534.7,0.98661]
[1646702683016,0.00502665,2535.0,2534.7,0.98661]
[1646702683216,0.00502665,2535.0,2534.7,15.2876]
[1646702683421,0.00502665,2535.0,2534.9,12.13]
[1646702683619,0.00502665,2535.0,2534.9,12.621]
[1646702684020,0.9863551,2535.9,2534.9,12.621]
[1646702684253,0.51847145,2535.8,2535.3,0.98634]
[1646702684556,0.51847145,2535.8,2534.7,0.491]
[1646702684754,4.69301108,2536.0,2534.6,1.6234]
[1646702684755,0.51847145,2535.7,2534.6,1.6234]
[1646702684955,0.51847145,2535.6,2534.6,0.491]
[1646702685156,0.88443192,2535.2,2534.7,1.16608821]
[1646702685561,1.18443192,2535.2,2534.7,1.16608821]
[1646702685760,2.17108922,2535.2,2534.7,1.16608821]
[1646702686663,0.00501082,2535.1,2534.7,1.16608821]
[1646702687466,0.3,2535.2,2534.7,2.15268821]
[1646702687663,18.34329744,2536.1,2534.7,18.66708821]
[1646702687664,0.00501085,2535.0,2534.7,18.66708821]
[1646702687864,0.00501085,2535.0,2534.7,19.66708821]
[1646702688512,0.00501085,2535.0,2534.7,20.27067421]
[1646702688708,1.02406041,2535.9,2535.4,0.96411798]
[1646702688910,0.51354493,2535.8,2535.4,0.98634]
[1646702689312,0.81354493,2535.8,2535.4,0.98634]
[1646702689611,0.51354493,2535.7,2535.4,0.98634]
[1646702689810,0.51354493,2535.6,2535.4,0.98634]
[1646702691115,0.3,2535.7,2535.4,0.98634]
[1646702691318,0.51964845,2535.6,2535.4,0.98634]
[1646702691515,0.00501152,2535.6,2535.4,0.98634]
[1646702692159,1.02406041,2535.9,2535.4,0.98634]
[1646702692356,0.51461122,2535.8,2535.4,0.98634]
[1646702692561,0.00501142,2535.6,2535.4,0.98634]
[1646702692960,0.51578531,2535.5,2535.4,0.98634]
[1646702693762,0.3,2535.8,2535.4,0.98634]
[1646702693763,0.00501146,2535.6,2535.4,0.98634]
[1646702693960,0.51578531,2535.5,2535.4,0.98634]
[1646702694563,0.02556732,2535.6,2535.4,0.98634]
[1646702694564,0.02556732,2535.6,2535.4,4.48634]
[1646702694762,0.02055586,2535.6,2535.5,3.5]
[1646702694961,0.53754227,2535.6,2535.5,3.991]
[1646702695159,0.54246053,2535.6,2535.5,0.491]
[1646702696007,0.53754227,2535.6,2535.5,0.491]
[1646702697407,0.53754227,2535.6,2535.5,0.17293269]
[1646702698110,0.53754227,2535.6,2535.5,3.67293269]
[1646702698309,0.71279744,2536.3,2535.6,17.63]
[1646702698508,1.22442154,2536.4,2535.7,6.05004531]
[1646702698707,0.5116241,2536.3,2535.8,1.07308531]
[1646702698908,2.8794,2536.7,2535.9,3.991]
[1646702698909,0.5116241,2536.2,2535.9,3.991]
[1646702699112,0.5116241,2536.1,2535.9,18.09479141]
[1646702699364,1.58646903,2536.8,2535.9,6.25835666]
[1646702699564,0.50112646,2536.7,2535.9,6.25835666]
[1646702699865,0.50112646,2536.7,2535.9,6.25620109]
[1646702700263,0.50112646,2536.7,2536.4,0.98596]
[1646702701669,0.50112646,2536.6,2536.4,0.98596]
[1646702702066,0.50112646,2536.5,2536.4,4.48596]
[1646702702269,0.00321622,2536.7,2536.4,4.97696]
[1646702702573,0.00321622,2536.7,2536.4,18.50036]
[1646702703029,0.01286295,2537.1,2536.8,12.13]
[1646702703226,0.01286295,2537.1,2536.9,16.5144]
[1646702703427,0.71279744,2537.8,2537.0,12.13]
[1646702703626,0.02118547,2537.1,2537.0,12.13]
[1646702703827,0.02118547,2537.1,2537.0,13.0822622]
[1646702704027,0.02118547,2537.1,2537.0,13.5732622]
[1646702704231,0.98678809,2537.9,2537.0,13.5732622]
[1646702704431,0.91275567,2537.5,2537.3,0.98548]
[1646702704631,0.197,2538.1,2537.3,0.98548]
[1646702704632,0.71279744,2537.9,2537.3,0.98548]
[1646702704827,0.197,2537.8,2537.3,0.98548]
[1646702705227,1.01279744,2537.9,2537.3,0.98548]
[1646702705429,0.71279744,2537.8,2537.5,0.9856]
[1646702705634,1.01279744,2537.9,2537.5,1.97111]
[1646702705835,0.00321525,2537.7,2537.5,3.07613313]
[1646702706236,0.00321525,2537.7,2537.6,3.5]
[1646702706434,0.00321525,2537.7,2537.6,3.991]
[1646702706634,0.9829357,2538.8,2537.6,3.991]
[1646702706635,0.197,2538.6,2537.7,0.98515]
[1646702706865,0.1968774,2538.9,2537.9,14.61892143]
[1646702707061,0.01180549,2538.2,2538.0,3.5]
[1646702707266,7.74e-05,2538.9,2538.3,12.13]
[1646702707460,7.74e-05,2538.9,2538.4,16.121]
[1646702707661,7.74e-05,2538.9,2538.5,13.0144]
[1646702707861,7.74e-05,2538.9,2538.7,12.5234]
[1646702708062,7.74e-05,2538.9,2538.8,16.5144]
[1646702708364,0.5,2540.0,2539.0,12.5234]
[1646702708662,0.5,2540.0,2539.5,13.5077457]
[1646702708862,0.5,2540.0,2539.6,3.991]
[1646702709163,0.5,2540.0,2539.7,1.96881]
[1646702709366,0.5,2540.0,2539.7,2.45981]
[1646702710177,0.5,2540.0,2539.2,0.491]
[1646702710178,3.5,2539.9,2539.2,0.491]
[1646702710367,0.5,2540.0,2539.0,0.491]
[1646702710615,0.5,2540.0,2538.7,0.491]
[1646702710815,3.5,2539.9,2538.7,0.491]
[1646702711214,3.5,2539.9,2538.2,12.13]
[1646702711215,0.98982879,2539.1,2538.2,1.9699109]
[1646702711413,0.98982879,2539.1,2538.1,8.76823869]
[1646702711414,0.98982879,2539.1,2538.5,1.9701]
[1646702711813,0.2729,2539.4,2538.5,2.95514]
[1646702711814,0.27819596,2539.4,2538.5,2.95514]
[1646702712216,0.27819596,2539.4,2538.5,15.47854]
[1646702712416,0.27819596,2539.4,2538.6,0.491]
[1646702712818,0.2729,2539.4,2538.7,0.98495]
[1646702713019,0.00529625,2539.1,2538.7,2.03434878]
[1646702713218,0.00529625,2539.1,2538.7,2.52534878]
[1646702713819,0.00529625,2539.1,2538.7,1.47595]
[1646702714020,0.2729,2539.4,2538.7,1.47595]
[1646702714266,0.00320662,2539.0,2538.7,1.47595]
[1646702715154,0.2729,2539.4,2538.7,2.44906302]
[1646702715355,0.2729,2539.4,2538.8,0.98491]
[1646702715561,0.00512021,2539.0,2538.9,2.46063]
[1646702715759,0.00512021,2539.0,2538.9,14.59063]
[1646702715960,0.00512021,2539.0,2538.9,14.98403]
[1646702716162,0.00512021,2539.0,2538.9,15.98403]
[1646702716361,0.2729,2539.4,2538.9,15.98403]
[1646702716564,0.2729,2539.4,2539.0,12.13]
[1646702716761,0.00506042,2539.1,2539.0,4.1964745]
[1646702716962,0.00506042,2539.1,2539.0,3.7027805]
[1646702717463,0.2729,2539.4,2539.0,2.29079304]
[1646702717864,0.00506035,2539.2,2539.0,1.06372254]
[1646702718105,0.00506035,2539.2,2538.9,1.96963]
[1646702718706,0.2729,2539.4,2538.9,1.96963]
[1646702718907,0.99262695,2539.1,2538.9,1.96963]
[1646702720318,0.00492144,2539.1,2538.9,1.96963]
[1646702721117,0.17782144,2539.4,2538.9,1.96963]
[1646702721319,0.00311217,2539.1,2538.9,1.96963]
[1646702721518,0.00311217,2539.1,2539.0,14.55879791]
[1646702721979,0.00311217,2539.1,2539.0,14.95219791]
[1646702722178,0.00311217,2539.1,2539.0,14.55879791]
[1646702722382,0.5,2540.0,2539.0,2.42879791]
[1646702722578,0.5,2540.0,2539.0,1.47575]
[1646702722579,0.9518111,2539.5,2539.0,1.47575]
[1646702722981,0.5,2540.0,2539.1,0.98487]
[1646702723180,0.5,2540.0,2539.4,0.98465]
[1646702723380,0.5,2540.0,2539.5,0.491]
[1646702723981,0.00320399,2539.7,2539.5,0.491]
[1646702724181,0.00320399,2539.7,2539.2,1.96962]
[1646702724385,0.00320399,2539.7,2538.8,0.491]
[1646702724386,0.00320399,2539.7,2539.1,0.98495]
[1646702724581,0.00320399,2539.7,2539.1,1.96983]
[1646702724783,1.14947652,2539.9,2539.1,1.96983]
[1646702725182,0.00320399,2539.6,2539.1,1.96983]
[1646702725503,0.95480271,2539.5,2539.1,1.96983]
[1646702726310,0.00530101,2539.4,2539.3,0.98482]
[1646702726814,0.00530101,2539.4,2539.3,13.60582]
[1646702727010,0.00530101,2539.4,2539.3,13.99922]
[1646702727210,0.5,2540.0,2539.5,12.13]
[1646702727410,0.5,2540.0,2539.6,13.99874]
[1646702727614,0.02120069,2539.9,2539.6,16.9516995]
[1646702727810,0.5,2540.0,2539.8,12.13]
[1646702728010,0.5,2540.0,2539.9,0.491]
[1646702728611,0.5,2540.0,2539.9,1.47528]
[1646702729014,0.5,2540.0,2539.8,1.96856]
[1646702729262,0.5,2540.0,2539.4,0.491]
[1646702729653,0.5,2540.0,2539.5,1.96937]
[1646702730757,0.5,2540.0,2539.4,0.98468]
[1646702730956,0.5,2540.0,2539.6,0.00211645]
[1646702731157,1.01123547,2539.9,2539.6,0.00211645]
[1646702731960,1.01123547,2539.9,2539.4,0.98468]
[1646702732360,1.01123547,2539.9,2539.6,0.99005116]
[1646702733202,1.01123547,2539.9,2539.6,0.98475]
[1646702733403,1.01123547,2539.9,2539.6,0.99005116]
[1646702733604,1.01123547,2539.9,2539.6,0.00530116]
[1646702734404,1.01123547,2539.9,2539.5,0.98477]
[1646702734604,1.01123547,2539.9,2539.6,0.00530116]
[1646702735610,1.01123547,2539.9,2539.3,0.98488]
[1646702735810,1.01123547,2539.9,2539.6,0.00530116]
[1646702736008,1.31123547,2539.9,2539.6,0.00530116]
[1646702736209,1.01123547,2539.9,2539.6,0.00530116]
[1646702736860,0.88250944,2539.4,2539.3,0.98488]
[1646702737058,0.88250944,2539.4,2539.1,3.93923]
[1646702737260,0.88250944,2539.4,2538.9,1.96984]
[1646702737458,0.88250944,2539.4,2538.4,0.60355658]
[1646702737857,1.18250944,2539.4,2538.4,0.60355658]
[1646702738058,3.5,2539.3,2538.1,0.02811869]
[1646702738262,1.2853241,2539.2,2538.1,0.02811869]
[1646702738560,7.1243719,2539.1,2538.8,4.279e-05]
[1646702738761,0.42858039,2539.0,2538.8,4.279e-05]
[1646702738963,3.5,2538.9,2538.8,4.279e-05]
[1646702739163,0.98548,2538.6,2537.1,5.4253]
[1646702739360,3.5,2538.5,2537.6,1.97079]
[1646702739560,0.98548,2538.6,2537.6,1.97079]
[1646702739761,1.20527955,2538.0,2537.6,1.97079]
[1646702739962,3.86675721,2538.7,2537.6,1.97079]
[1646702740161,3.86675721,2538.7,2537.7,3.5]
[1646702740619,3.86675721,2538.7,2537.7,0.98531]
[1646702741317,0.94786286,2538.2,2538.0,0.98528]
[1646702741916,0.94786286,2538.2,2538.1,0.00530246]
[1646702742917,0.94786286,2538.2,2537.5,1.97092]
[1646702743124,0.94786286,2538.2,2538.0,0.0053025]
[1646702744117,0.94786286,2538.2,2537.7,0.98548]
[1646702744370,0.94786286,2538.2,2538.0,0.00530254]
[1646702745170,0.94786286,2538.2,2537.7,0.98548]
[1646702745570,0.94786286,2538.2,2538.0,0.00530254]
[1646702746375,0.94786286,2538.2,2537.5,1.97092]
[1646702746575,0.94786286,2538.2,2537.5,2.8843599]
[1646702746776,0.43179827,2538.1,2538.0,0.00514346]
[1646702746975,0.38179827,2538.1,2538.0,0.00514346]
[1646702747376,0.94786286,2538.2,2538.0,0.00514346]
[1646702747578,0.94786286,2538.2,2537.5,2.8843599]
[1646702748005,0.96796636,2538.2,2537.9,0.0051435]
[1646702748805,0.96796636,2538.2,2537.7,1.97067]
[1646702749007,0.96796636,2538.2,2537.7,2.46167]
[1646702749205,0.0201035,2538.2,2537.9,0.0051435]
[1646702749408,0.0201035,2538.2,2538.0,0.491]
[1646702749609,0.0201035,2538.2,2538.0,2.46139]
[1646702750210,1.01225785,2538.6,2538.2,3.9205936]
[1646702750417,1.01225785,2538.6,2538.2,2.46138]
[1646702750612,1.01225785,2538.6,2538.0,0.00183728]
[1646702750816,1.01225785,2538.6,2538.1,0.98536]
[1646702751422,1.01225785,2538.6,2538.2,0.0018371]
[1646702752459,1.01225785,2538.6,2538.1,1.9706748]
[1646702752663,1.01225785,2538.6,2538.1,2.9559548]
[1646702752861,1.01225785,2538.6,2538.3,0.00502237]
[1646702753561,1.01225785,2538.6,2538.2,0.9852604]
[1646702753960,1.01225785,2538.6,2538.3,0.00513524]
[1646702754963,0.00075721,2538.7,2538.2,0.9852604]
[1646702755161,0.00075721,2538.7,2538.3,0.99036524]
[1646702756014,0.00075721,2538.7,2538.3,0.98523]
[1646702756415,0.99763211,2538.6,2538.3,0.98523]
[1646702756612,0.99763211,2538.6,2538.4,0.0051352]
[1646702757413,0.99763211,2538.6,2538.4,0.00237332]
[1646702757713,0.99763211,2538.6,2538.4,0.0073933]
[1646702757912,0.99763211,2538.6,2538.4,0.00501998]
[1646702758112,1.98291211,2538.6,2538.4,0.00501998]
[1646702758916,1.98291211,2538.6,2537.9,0.9854]
[1646702759558,1.98291211,2538.6,2538.0,1.476295]
[1646702760356,1.17630642,2538.2,2538.0,1.476295]
[1646702760560,2.16161642,2538.2,2538.0,0.491]
[1646702760760,2.16161642,2538.2,2537.7,1.97075]
[1646702761362,0.98531,2538.2,2537.7,2.36415]
[1646702761567,1.97061,2538.4,2537.7,2.36415]
[1646702761568,2.27061,2538.4,2538.0,0.99052927]
[1646702761760,0.98521,2538.5,2538.1,0.491]
[1646702762660,0.98521,2538.5,2538.1,1.52102705]
[1646702762860,0.98521,2538.5,2538.1,0.49629919]
[1646702763808,0.98521,2538.5,2538.2,0.0052991]
[1646702764910,0.98521,2538.5,2538.2,0.01059816]
[1646702765112,0.98521,2538.5,2538.2,0.00529906]
[1646702765510,0.98521,2538.5,2538.3,0.98525]
[1646702766955,0.98521,2538.5,2538.2,0.00451611]
[1646702767155,0.98521,2538.5,2538.3,0.00451607]
[1646702768456,0.98521,2538.5,2538.3,0.00903214]
[1646702768655,0.42836365,2538.4,2538.3,0.00451607]
[1646702769858,0.42836365,2538.4,2538.2,0.98979111]
[1646702770258,2.39888365,2538.4,2538.2,0.98979111]
[1646702770503,1.97052,2538.4,2538.2,0.98979111]
[1646702770908,1.97052,2538.4,2538.2,1.97503965]
[1646702771512,0.42845794,2538.3,2538.2,1.97503965]
[1646702771812,0.42845794,2538.3,2538.2,3.03077605]
[1646702772010,0.42845794,2538.3,2538.2,3.0352772]
[1646702772209,0.42845794,2538.4,2538.2,3.03077605]
[1646702773311,0.98525,2538.6,2538.3,17.47313654]
[1646702773510,0.00075721,2538.7,2538.5,12.13]
[1646702773710,0.00075721,2538.7,2538.6,17.07938794]
[1646702773909,0.00075721,2538.7,2538.6,17.57038794]
[1646702774109,0.00075721,2538.7,2538.6,18.62668794]
[1646702774356,0.00075721,2538.7,2538.6,19.78017684]
[1646702774756,0.00075721,2538.7,2538.6,20.76499684]
[1646702774958,0.00075721,2538.7,2538.6,7.4856089]
[1646702775155,0.00075721,2538.7,2538.6,6.4293089]
[1646702775354,0.00075721,2538.7,2538.6,7.57938807]
[1646702775560,0.00075721,2538.7,2538.6,19.60938807]
[1646702776963,0.00075721,2538.7,2538.6,20.20397574]
[1646702777162,0.42900962,2539.1,2538.7,4.5]
[1646702777361,0.42900962,2539.1,2538.9,0.98482]
[1646702777566,0.42900962,2539.1,2539.0,3.5]
[1646702777760,0.42900962,2539.1,2539.0,3.991]
[1646702778005,0.42900962,2539.2,2539.0,3.991]
[1646702778206,0.42900962,2539.1,2539.0,3.991]
[1646702778506,0.00457268,2539.6,2539.2,0.62735499]
[1646702778507,0.00457308,2539.6,2539.2,0.62735499]
[1646702778707,0.42909265,2539.5,2539.4,1.00575357]
[1646702779105,0.42909265,2539.5,2539.4,1.30575357]
[1646702779306,0.71279744,2539.9,2539.5,2.5]
[1646702779510,0.5,2540.0,2539.6,3.991]
[1646702779708,0.01829212,2539.9,2539.7,0.98453]
[1646702779905,0.01829212,2539.9,2539.8,0.491]
[1646702780309,0.01829212,2539.9,2539.8,1.67477074]
[1646702780513,1.00283212,2539.9,2539.8,1.67477074]
[1646702780811,1.00759488,2539.9,2539.8,0.791]
[1646702781009,1.28930276,2539.9,2539.8,0.791]
[1646702781210,0.98930276,2539.9,2539.8,0.791]
[1646702781410,1.28930276,2539.9,2539.8,0.791]
[1646702781613,1.28930276,2539.9,2539.8,13.3144]
[1646702781859,0.30476276,2539.9,2539.8,13.3144]
[1646702782061,0.3,2539.9,2539.8,0.791]
[1646702782260,0.50476273,2540.0,2539.9,0.98458]
[1646702782458,0.45476273,2540.0,2539.9,0.98458]
[1646702783259,0.45,2540.0,2539.8,1.2845734]
[1646702783458,0.45,2540.0,2539.8,0.9845734]
[1646702783659,0.45,2540.0,2539.8,1.9692534]
[1646702783861,1.45902831,2540.0,2539.8,1.9692534]
[1646702784059,0.45,2540.0,2539.8,1.9692534]
[1646702784459,0.45481422,2540.0,2539.8,1.9692534]
[1646702784662,0.45481422,2540.0,2539.8,2.2692534]
[1646702785259,0.45481422,2540.0,2539.8,3.21954315]
[1646702786319,0.45481422,2540.0,2539.7,4.9227344]
[1646702786521,0.98467,2539.9,2539.7,4.9227344]
[1646702786719,1.28467,2539.9,2539.7,4.9227344]
[1646702786920,0.98467,2539.9,2539.7,4.9227344]
[1646702787119,1.28467,2539.9,2539.7,4.9227344]
[1646702787325,1.01603661,2539.6,2539.5,0.0048153]
[1646702787921,1.01603661,2539.6,2539.5,0.00953142]
[1646702788120,1.2847,2539.7,2539.5,0.00471612]
[1646702788522,1.2847,2539.7,2539.5,0.49571612]
[1646702788720,1.2847,2539.7,2539.5,1.4757]
[1646702789121,1.2847,2539.7,2539.5,1.48041589]
[1646702789359,1.2847,2539.7,2539.5,2.4220892]
[1646702790062,1.2847,2539.7,2539.5,2.41737331]
[1646702790259,1.2347,2539.7,2539.5,2.4220892]
[1646702790666,1.2347,2539.7,2539.5,2.2720892]
[1646702790863,1.2347,2539.7,2539.5,14.4020892]
[1646702791266,1.2347,2539.7,2539.5,14.39737331]
[1646702791464,1.2347,2539.7,2539.5,14.40237556]
[1646702791663,1.2347,2539.7,2539.6,12.13]
[1646702791865,1.2347,2539.7,2539.6,0.491]
[1646702792064,1.2347,2539.7,2539.6,0.791]
[1646702792464,1.2347,2539.7,2539.6,0.78453457]
[1646702792666,0.3,2539.7,2539.6,0.29353457]
[1646702792864,0.3,2539.7,2539.5,0.98970231]
[1646702793121,0.95316864,2539.7,2539.5,0.98970231]
[1646702793719,1.93785864,2539.7,2539.5,0.9847]
[1646702793919,1.93785864,2539.7,2539.5,0.98970225]
[1646702794117,2.23785864,2539.7,2539.5,1.28970225]
[1646702794518,1.28469,2539.7,2539.5,1.28970225]
[1646702794717,0.3,2539.7,2539.5,1.28324525]
[1646702794916,0.3,2539.7,2539.5,1.278243]
[1646702795116,0.98957186,2539.8,2539.6,1.96909]
[1646702795319,0.98957186,2539.8,2539.6,2.9536571]
[1646702795516,0.94368185,2539.7,2539.6,2.9536571]
[1646702795721,0.94368185,2539.7,2539.6,1.96909]
[1646702796320,1.28955117,2539.8,2539.6,1.96909]
[1646702797370,1.28456,2539.8,2539.6,1.96909]
[1646702797570,2.20043371,2539.8,2539.6,1.96909]
[1646702797771,1.28955123,2539.8,2539.6,1.96909]
[1646702798372,1.28456,2539.8,2539.6,1.96909]
[1646702798577,1.28456,2539.8,2539.6,2.953656]
[1646702798773,1.28945764,2539.8,2539.6,1.39605209]
[1646702799574,1.28456,2539.8,2539.6,2.38061809]
[1646702799874,1.28946022,2539.8,2539.6,2.38061809]
[1646702800915,1.28456,2539.8,2539.6,2.38061809]
[1646702801114,1.28946022,2539.8,2539.6,2.38061809]
[1646702802114,1.28456,2539.8,2539.6,2.38061809]
[1646702802316,1.28929243,2539.8,2539.6,2.38061809]
[1646702802918,2.35983036,2539.7,2539.5,0.00473312]
[1646702803119,1.96979,2539.7,2539.5,0.00473312]
[1646702803316,1.96979,2539.7,2539.2,0.62735499]
[1646702803317,1.37479797,2539.6,2539.2,0.62735499]
[1646702803515,0.98473,2539.6,2539.5,0.00473576]
[1646702803716,1.28473,2539.6,2539.5,0.00473576]
[1646702804118,0.3,2539.6,2539.5,0.00473576]
[1646702804367,0.45,2540.0,2539.5,3.991]
[1646702804570,0.45,2540.0,2539.6,0.3934]
[1646702804767,0.45,2540.0,2539.8,12.13]
[1646702804969,0.03,2540.2,2540.0,12.13]
[1646702805171,0.03,2540.2,2540.1,2.58425491]
[1646702805368,0.03,2540.2,2540.1,2.88425491]
[1646702806172,0.03473368,2540.2,2540.1,2.88425491]
[1646702806771,0.03,2540.2,2540.1,2.88425491]
[1646702807573,0.03,2540.2,2540.1,1.28432]
[1646702808810,0.42375965,2540.2,2540.1,1.28432]
[1646702809309,0.03,2540.2,2540.1,1.28432]
[1646702810110,0.03,2540.2,2540.1,17.40532]
[1646702810311,0.03,2540.2,2540.1,18.40532]
[1646702810716,0.03,2540.2,2540.1,19.58324468]
[1646702812560,0.03,2540.2,2540.1,7.45324468]
[1646702813663,0.03,2540.2,2540.1,19.58324468]
[1646702814263,0.03,2540.2,2540.1,19.97664468]
[1646702814465,0.03,2540.2,2540.1,19.58324468]
[1646702814886,0.1968,2541.2,2540.2,17.66]
[1646702815077,0.01320222,2541.0,2540.5,5.5]
[1646702815270,0.01320222,2541.0,2540.8,0.9839]
[1646702815515,4.7443692,2542.1,2541.2,12.13]
[1646702815716,4.7443692,2542.1,2541.4,1.23259432]
[1646702815717,0.90332592,2541.9,2541.4,1.23259432]
[1646702815919,0.90332592,2541.9,2541.5,0.491]
[1646702816219,0.0092692,2542.1,2541.5,0.791]
[1646702816417,0.39305683,2542.0,2541.5,0.791]
[1646702816817,0.39305683,2542.0,2541.5,1.77481]
[1646702817017,0.39305683,2542.0,2541.6,0.98381]
[1646702817318,0.39305683,2542.0,2541.6,1.47481]
[1646702817519,0.39305683,2542.0,2541.8,1.21445324]
[1646702817720,0.39305683,2542.0,2541.8,0.3]
[1646702817920,0.00316575,2541.9,2541.8,0.3]
[1646702818121,0.00316575,2541.9,2541.8,1.96742]
[1646702818322,0.00316575,2541.9,2541.8,3.2511387]
[1646702818724,0.39305683,2542.0,2541.8,3.2511387]
[1646702818922,0.39305683,2542.0,2541.8,1.54017583]
[1646702819123,0.39622257,2542.0,2541.8,1.54017583]
[1646702819562,0.39622257,2542.0,2541.8,2.52389453]
[1646702819766,0.39622257,2542.0,2541.9,0.98369]
[1646702819964,0.0092692,2542.1,2541.9,4.48369]
[1646702820167,0.0092692,2542.1,2542.0,3.5]
[1646702820366,0.0064288,2542.4,2542.1,12.13]
[1646702820568,0.0461859,2542.4,2542.2,3.991]
[1646702820770,0.357066,2542.3,2542.2,0.791]
[1646702820969,0.357066,2542.3,2542.2,0.3]
[1646702821371,0.357066,2542.3,2541.9,0.3]
[1646702821868,0.357066,2542.3,2541.8,0.491]
[1646702821869,1.48901841,2542.3,2542.1,1.966914]
[1646702822068,0.357066,2542.2,2542.1,1.966914]
[1646702822270,0.357066,2542.2,2542.1,2.266914]
[1646702822768,0.3756044,2542.2,2542.1,2.266914]
[1646702823015,0.3756044,2542.2,2542.1,3.27293968]
[1646702823315,0.0185384,2542.2,2542.1,5.24034968]
[1646702824414,0.0185384,2542.2,2542.1,4.234324]
[1646702825216,0.0185384,2542.2,2542.1,3.934324]
[1646702825415,0.0185384,2542.2,2541.9,3.9352233]
[1646702825416,0.92464936,2542.2,2541.9,3.9352233]
[1646702825618,0.34826627,2542.1,2541.9,3.9352233]
[1646702825918,0.0128576,2542.4,2542.0,5.95845]
[1646702826119,0.0128576,2542.4,2542.0,2.45845]
[1646702826521,0.0128576,2542.4,2542.0,4.72546]
[1646702826775,0.0128576,2542.4,2542.1,0.9834]
[1646702826964,0.0128576,2542.4,2542.1,1.4744]
[1646702827165,0.0128576,2542.4,2542.2,1.96716]
[1646702827766,0.01583237,2542.4,2542.2,1.96716]
[1646702828166,0.01583237,2542.4,2542.3,0.87617476]
[1646702828365,0.01583237,2542.4,2542.3,1.85971476]
[1646702828565,0.0128576,2542.4,2542.3,2.15971476]
[1646702828764,0.01798928,2542.4,2542.3,2.15971476]
[1646702829167,0.01798928,2542.4,2542.3,1.28354]
[1646702829664,0.0128576,2542.4,2542.3,1.28354]
[1646702832016,0.0128576,2542.4,2542.3,1.88068437]
[1646702832215,0.0128576,2542.4,2542.3,1.28354]
[1646702834863,0.0128576,2542.4,2542.2,2.16366]
[1646702835065,0.0128576,2542.4,2542.1,0.98382]
[1646702835973,0.01798845,2542.4,2542.1,0.98382]
[1646702836170,0.01798845,2542.4,2542.1,2.951149]
[1646702836370,0.01798845,2542.4,2542.2,1.96703]
[1646702836972,0.0128576,2542.4,2542.2,1.96703]
[1646702837169,0.01788877,2542.4,2542.2,1.96703]
[1646702837570,0.01788877,2542.4,2542.2,2.26703]
[1646702838217,0.0128576,2542.4,2542.2,2.26703]
[1646702838416,0.01788877,2542.4,2542.2,2.26703]
[1646702839017,0.01788877,2542.4,2542.2,1.28837202]